fUSD/lending_fUSD_20240614
["ID","MTS","AMOUNT","RATE_DAILY","PERIOD"]
[329467983,1718382446866,-177.97,0.00021801,2]
[329467984,1718382446928,-796.01671267,0.000219,2]
[329467985,1718382446965,-342.07,0.00021903,2]
[329467986,1718382447005,-250.0,0.00021918,2]
[329467987,1718382447041,-400.37,0.00021918,2]
[329467988,1718382447077,-548.99,0.00021944,2]
[329467989,1718382447112,-1000.0,0.00021981,2]
[329467990,1718382447161,-3243.22514174,0.00022,10]
[329467991,1718382447201,-177.97,0.00022074,2]
[329467992,1718382447235,-304.61863798,0.00022203,2]
[329467993,1718382447272,-927.68565498,0.00022204,2]
[329467994,1718382447310,-797.29310967,0.00022205,2]
[329467995,1718382447342,-258.1163,0.00022514,2]
[329467996,1718382447395,-3756.1229,0.00022514,2]
[329467997,1718382447434,-168.13,0.00022564,2]
[329467998,1718382447481,-397.4009,0.00022579,2]
[329467999,1718382447532,-958.72,0.0002259,2]
[329468000,1718382447580,-958.72,0.00022596,2]
[329468001,1718382447634,-584.99,0.00022597,3]
[329468002,1718382447693,-958.72,0.00022602,2]
[329468003,1718382447748,-500.0,0.00022602,2]
[329468004,1718382447812,-500.0,0.00022602,2]
[329468005,1718382447905,-500.0,0.00022602,2]
[329468006,1718382447953,-9911.96951834,0.00022606,2]
[329468007,1718382448008,-599.63,0.00022606,3]
[329468008,1718382448061,-1354.91417079,0.00022607,2]
[329468009,1718382448140,-1276.26394337,0.00022607,2]
[329468010,1718382448198,-958.72,0.00022608,2]
[329468011,1718382448248,-958.72,0.00022614,2]
[329468012,1718382448290,-881.59,0.00022616,3]
[329468013,1718382448337,-958.72,0.0002262,2]
[329468014,1718382448405,-958.72,0.00022626,2]
[329468015,1718382448446,-344.0,0.00022626,2]
[329468016,1718382448484,-958.72,0.00022632,2]
[329468017,1718382448531,-958.72,0.00022638,2]
[329468018,1718382448575,-293.86,0.0002264,3]
[329468019,1718382448625,-958.72,0.00022644,2]
[329468020,1718382448702,-958.72,0.0002265,2]
[329468021,1718382448765,-958.72,0.00022655,2]
[329468022,1718382448806,-958.72,0.00022661,2]
[329468023,1718382448905,-958.72,0.00022667,2]
[329468024,1718382448960,-958.72,0.00022673,2]
[329468025,1718382449028,-958.72,0.00022679,2]
[329468026,1718382449072,-958.72,0.00022685,2]
[329468027,1718382449133,-958.72,0.00022691,2]
[329468028,1718382449170,-958.72,0.00022697,2]
[329468029,1718382449234,-958.72,0.00022703,2]
[329468030,1718382449294,-228.66508311,0.00022744,2]
[329468031,1718382449349,-215.0,0.0002276,2]
[329468032,1718382449407,-221.6582,0.0002279,2]
[329468033,1718382449462,-315.20424558,0.0002289,2]
[329468034,1718382449503,-1302.30583545,0.0002289,2]
[329468035,1718382449547,-342.07,0.00022998,2]
[329468036,1718382449583,-249.49889118,0.00023,2]
[329468037,1718382449673,-1300.0,0.00023,2]
[329468038,1718382449742,-5000.0,0.00023,2]
[329468039,1718382449810,-1775.17468811,0.00023093,2]
[329468040,1718382449868,-626.22089567,0.00023131,2]
[329468041,1718382449921,-161.59,0.00023202,2]
[329468042,1718382449965,-215.0,0.0002342,2]
[329468043,1718382450160,-773.5,0.00023421,2]
[329468044,1718382450205,-423.01,0.00023452,2]
[329468045,1718382450238,-353.74,0.00023452,2]
[329468046,1718382450309,-164.35,0.00023452,2]
[329468047,1718382450357,-150.0,0.00023452,2]
[329468048,1718382450402,-150.0,0.00023452,2]
[329468049,1718382450456,-1364.48863577,0.00023509,2]
[329468050,1718382450502,-651.8382771,0.00023555,2]
[329468051,1718382450541,-569.42317675,0.00023555,2]
[329468052,1718382450633,-649.72311182,0.00023556,2]
[329468053,1718382450719,-27310.2809062,0.00023557,7]
[329468054,1718382450763,-219.6763,0.00023598,2]
[329468055,1718382450814,-102275.488,0.00023598,2]
[329468056,1718382450886,-707.7405,0.00023598,2]
[329468057,1718382450950,-1000.0,0.00023609,2]
[329468058,1718382450983,-2500.0,0.00023609,2]
[329468059,1718382451030,-156.39010704,0.00023677,2]
[329468060,1718382451073,-500.0,0.00023698,2]
[329468061,1718382451152,-500.0,0.00023698,2]
[329468062,1718382451212,-600.0,0.000237,8]
[329468063,1718382451285,-175.94815184,0.00023707,2]
[329468064,1718382451334,-327.09381956,0.00023707,2]
[329468065,1718382451370,-864.32516302,0.00023707,2]
[329468066,1718382451426,-3223.80135474,0.00023707,2]
[329468067,1718382451484,-1473.50531607,0.00023707,2]
[329468068,1718382451534,-402.61214553,0.00023707,2]
[329468069,1718382451579,-1152.31990522,0.00023708,10]
[329468070,1718382451625,-163.24630687,0.00023708,2]
[329468071,1718382451673,-4544.42459731,0.00023708,2]
[329468072,1718382451756,-16842.4677,0.00023709,2]
[329468073,1718382451832,-53031.5488,0.00023709,2]
[329468074,1718382451872,-1071.51059661,0.00023777,2]
[329468075,1718382451914,-241.1370677,0.000238,2]
[329468076,1718382451964,-1200.0,0.000238,8]
[329468077,1718382452005,-151.0,0.00023855,3]
[329468078,1718382452051,-1000.0,0.0002387,2]
[329468079,1718382452091,-156.39010701,0.00023876,2]
[329468080,1718382452153,-1364.48863573,0.00023894,2]
[329468081,1718382452202,-1986.90518397,0.00023895,2]
[329468082,1718382452254,-328.09084185,0.000239,2]
[329468083,1718382452330,-1900.0,0.000239,8]
[329468084,1718382452366,-228.66508311,0.00023902,2]
[329468085,1718382452420,-270.4551539,0.00024,10]
[329468086,1718382452504,-1000.0,0.00024,2]
[329468087,1718382452563,-35557.93967372,0.00024,2]
[329468088,1718382452620,-179.8081269,0.00024,2]
[329468089,1718382452657,-153.51380811,0.00024002,2]
[329468090,1718382452700,-186.81298389,0.00024009,2]
[329468091,1718382452740,-179.8081269,0.00024009,2]
[329468092,1718382452791,-1378.9223,0.00024009,2]
[329468093,1718382452877,-587.72,0.0002401,3]
[329468094,1718382452921,-156.8900021,0.0002403,2]
[329468095,1718382452973,-153.03028188,0.00024031,2]
[329468096,1718382453051,-166.66666666,0.00024034,2]
[329468097,1718382453095,-154.29927158,0.00024068,2]
[329468098,1718382453146,-215.0,0.0002407,2]
[329468099,1718382453236,-156.39010701,0.00024075,2]
[329468100,1718382453320,-2148.32,0.0002408,2]
[329468101,1718382453361,-342.07,0.00024093,2]
[329468102,1718382453397,-338.62209965,0.00024095,2]
[329468103,1718382453441,-264.6056883,0.00024095,2]
[329468104,1718382453520,-211.5184763,0.00024095,2]
[329468105,1718382453561,-169.11351274,0.00024095,2]
[329468106,1718382453606,-1605.29438725,0.00024095,7]
[329468107,1718382453657,-791.16188927,0.00024096,2]
[329468108,1718382453708,-191.28471737,0.00024099,2]
[329468109,1718382453755,-151.8,0.00024099,2]
[329468110,1718382453788,-307922.272048,0.00024099,2]
[329468111,1718382453862,-2058.7735572,0.000241,2]
[329468112,1718382453917,-467.52895994,0.00024101,2]
[329468113,1718382453977,-229.43757501,0.00024102,2]
[329468114,1718382454025,-262.98117107,0.00024109,2]
[329468115,1718382454067,-500.0,0.00024109,3]
[329468116,1718382454104,-500.0,0.00024109,3]
[329468117,1718382454184,-500.0,0.00024109,3]
[329468118,1718382454279,-500.0,0.00024109,3]
[329468119,1718382454323,-500.0,0.00024109,3]
[329468120,1718382454363,-500.0,0.00024109,3]
[329468121,1718382454402,-500.0,0.00024109,3]
[329468122,1718382454481,-500.0,0.00024109,3]
[329468123,1718382454532,-500.0,0.00024109,3]
[329468124,1718382454581,-500.0,0.00024109,3]
[329468125,1718382454632,-500.0,0.00024109,3]
[329468126,1718382454688,-500.0,0.00024109,3]
[329468127,1718382454729,-500.0,0.00024109,3]
[329468128,1718382454775,-500.0,0.00024109,2]
[329468129,1718382454998,-500.71477602,0.00024109,2]
[329468130,1718382455046,-1188.89,0.00024109,3]
[329468131,1718382455113,-589.44,0.00024109,3]
[329468132,1718382455154,-307.30897339,0.00024109,3]
[329468133,1718382455209,-820.19,0.00024109,3]
[329468134,1718382455277,-500.0,0.00024109,3]
[329468135,1718382455345,-500.0,0.00024109,3]
[329468136,1718382455419,-185.2413825,0.00024109,3]
[329468137,1718382455459,-542.80590889,0.00024109,3]
[329468138,1718382455550,-500.0,0.00024109,3]
[329468139,1718382455611,-618.71,0.00024109,3]
[329468140,1718382455658,-500.0,0.00024109,3]
[329468141,1718382455726,-500.0,0.00024109,2]
[329468142,1718382455788,-500.0,0.00024109,3]
[329468143,1718382455860,-500.0,0.00024109,3]
[329468144,1718382455912,-672.8,0.00024109,3]
[329468145,1718382455949,-500.0,0.00024109,3]
[329468146,1718382456050,-500.0,0.00024109,3]
[329468147,1718382456098,-317.87977866,0.00024109,3]
[329468148,1718382456140,-500.0,0.00024109,3]
[329468149,1718382456276,-500.0,0.00024109,3]
[329468150,1718382456336,-500.0,0.00024109,3]
[329468151,1718382456412,-500.0,0.00024109,3]
[329468152,1718382456455,-598.96,0.00024109,3]
[329468153,1718382456513,-500.0,0.00024109,3]
[329468154,1718382456559,-500.0,0.00024109,3]
[329468155,1718382456627,-532.86905255,0.00024109,3]
[329468156,1718382456710,-500.0,0.00024109,3]
[329468157,1718382456777,-510.62417981,0.00024109,3]
[329468158,1718382456842,-500.0,0.00024109,3]
[329468159,1718382456904,-500.0,0.00024109,3]
[329468160,1718382456964,-824.89,0.00024109,3]
[329468161,1718382457013,-500.0,0.00024109,3]
[329468162,1718382457075,-500.0,0.00024109,3]
[329468163,1718382457116,-500.0,0.00024109,3]
[329468164,1718382457188,-500.0,0.00024109,3]
[329468165,1718382457247,-500.0,0.00024109,3]
[329468166,1718382457292,-500.0,0.00024109,3]
[329468167,1718382457352,-500.0,0.00024109,3]
[329468168,1718382457401,-534.58,0.00024109,3]
[329468169,1718382457469,-500.0,0.00024109,3]
[329468170,1718382457562,-500.0,0.00024109,3]
[329468171,1718382457643,-374.56,0.00024109,3]
[329468172,1718382457686,-500.0,0.00024109,3]
[329468173,1718382457723,-500.0,0.00024109,3]
[329468174,1718382457776,-500.0,0.00024109,3]
[329468175,1718382457834,-447.63968326,0.00024109,3]
[329468176,1718382457885,-500.0,0.00024109,3]
[329468177,1718382457963,-500.0,0.00024109,3]
[329468178,1718382458039,-530.1,0.00024109,3]
[329468179,1718382458089,-500.0,0.00024109,3]
[329468180,1718382458171,-500.0,0.00024109,3]
[329468181,1718382458264,-500.0,0.00024109,3]
[329468182,1718382458315,-906.26,0.00024109,3]
[329468183,1718382458385,-500.0,0.00024109,3]
[329468184,1718382458436,-500.0,0.00024109,3]
[329468185,1718382458546,-500.0,0.00024109,3]
[329468186,1718382458603,-500.0,0.00024109,3]
[329468187,1718382458679,-615.06,0.00024109,3]
[329468188,1718382458721,-500.0,0.00024109,3]
[329468189,1718382458800,-1914.81,0.00024109,3]
[329468190,1718382458867,-500.0,0.00024109,3]
[329468191,1718382458946,-500.0,0.00024109,3]
[329468192,1718382459032,-563.1,0.00024109,3]
[329468193,1718382459084,-509.34,0.00024109,3]
[329468194,1718382459139,-500.0,0.00024109,2]
[329468195,1718382459221,-500.0,0.00024109,3]
[329468196,1718382459280,-500.0,0.00024109,3]
[329468197,1718382459375,-500.0,0.00024109,3]
[329468198,1718382459426,-379.12550125,0.00024109,3]
[329468199,1718382459497,-500.0,0.00024109,3]
[329468200,1718382459560,-500.0,0.00024109,3]
[329468201,1718382459624,-807.09,0.00024109,3]
[329468202,1718382459694,-500.0,0.00024109,3]
[329468203,1718382459762,-207.08446305,0.00024109,3]
[329468204,1718382459850,-514.29186605,0.00024109,3]
[329468205,1718382459920,-500.0,0.00024109,3]
[329468206,1718382459970,-580.65411859,0.00024109,3]
[329468207,1718382460054,-500.0,0.00024109,3]
[329468208,1718382460098,-500.0,0.00024109,3]
[329468209,1718382460200,-528.21784657,0.00024109,3]
[329468210,1718382460259,-212.64853305,0.00024109,3]
[329468211,1718382460309,-500.0,0.00024109,3]
[329468212,1718382460367,-500.0,0.00024109,3]
[329468213,1718382460424,-500.0,0.00024109,3]
[329468214,1718382460471,-500.0,0.00024109,3]
[329468215,1718382460531,-509.502812,0.00024109,3]
[329468216,1718382460806,-504.9,0.00024109,3]
[329468217,1718382460898,-500.0,0.00024109,3]
[329468218,1718382460971,-505.91616701,0.00024109,3]
[329468219,1718382461036,-500.0,0.00024109,3]
[329468220,1718382461097,-647.49,0.00024109,3]
[329468221,1718382461166,-500.0,0.00024109,3]
[329468222,1718382461238,-500.0,0.00024109,3]
[329468223,1718382461305,-514.17245947,0.00024109,3]
[329468224,1718382461363,-500.0,0.00024109,3]
[329468225,1718382461425,-500.0,0.00024109,3]
[329468226,1718382461513,-529.94,0.00024109,3]
[329468227,1718382461559,-500.0,0.00024109,3]
[329468228,1718382461615,-500.0,0.00024109,3]
[329468229,1718382461653,-500.0,0.00024109,3]
[329468230,1718382461697,-500.0,0.00024109,3]
[329468231,1718382461744,-500.0,0.00024109,3]
[329468232,1718382461819,-500.0,0.00024109,2]
[329468233,1718382461902,-530.64954924,0.00024109,3]
[329468234,1718382461955,-741.65,0.00024109,3]
[329468235,1718382462018,-500.0,0.00024109,3]
[329468236,1718382462070,-526.0,0.00024109,3]
[329468237,1718382462130,-502.89750854,0.00024109,3]
[329468238,1718382462200,-500.0,0.00024109,3]
[329468239,1718382462305,-500.0,0.00024109,3]
[329468240,1718382462358,-500.0,0.00024109,3]
[329468241,1718382462421,-500.0,0.00024109,3]
[329468242,1718382462466,-500.0,0.00024109,3]
[329468243,1718382462521,-1039.58,0.00024109,3]
[329468244,1718382462576,-500.0,0.00024109,3]
[329468245,1718382462623,-619.14,0.00024109,3]
[329468246,1718382462676,-500.0,0.00024109,3]
[329468247,1718382462736,-563.65,0.00024109,3]
[329468248,1718382462809,-500.0,0.00024109,3]
[329468249,1718382462911,-500.0,0.00024109,3]
[329468250,1718382462980,-500.0,0.00024109,3]
[329468251,1718382463033,-500.0,0.00024109,3]
[329468252,1718382463087,-500.0,0.00024109,3]
[329468253,1718382463189,-500.0,0.00024109,3]
[329468254,1718382463239,-500.0,0.00024109,3]
[329468255,1718382463303,-500.0,0.00024109,3]
[329468256,1718382463354,-500.0,0.00024109,3]
[329468257,1718382463411,-500.0,0.00024109,3]
[329468258,1718382463456,-500.0,0.00024109,3]
[329468259,1718382463519,-500.0,0.00024109,3]
[329468260,1718382463573,-500.0,0.00024109,3]
[329468261,1718382463621,-500.0,0.00024109,3]
[329468262,1718382463664,-500.0,0.00024109,3]
[329468263,1718382463714,-1823.41,0.00024109,3]
[329468264,1718382463788,-500.0,0.00024109,3]
[329468265,1718382463876,-500.0,0.00024109,3]
[329468266,1718382463935,-500.0,0.00024109,3]
[329468267,1718382463975,-500.0,0.00024109,3]
[329468268,1718382464046,-500.0,0.00024109,3]
[329468269,1718382464106,-624.55,0.00024109,3]
[329468270,1718382464176,-500.0,0.00024109,3]
[329468271,1718382464222,-500.0,0.00024109,3]
[329468272,1718382464301,-606.88,0.00024109,3]
[329468273,1718382464356,-500.0,0.00024109,3]
[329468274,1718382464420,-500.0,0.00024109,3]
[329468275,1718382464470,-500.0,0.00024109,3]
[329468276,1718382464536,-500.0,0.00024109,3]
[329468277,1718382464588,-879.91,0.00024109,3]
[329468278,1718382464665,-500.0,0.00024109,3]
[329468279,1718382464708,-500.0,0.00024109,3]
[329468280,1718382464799,-500.0,0.00024109,3]
[329468281,1718382464885,-500.0,0.00024109,3]
[329468282,1718382464939,-673.4,0.00024109,3]
[329468283,1718382464983,-500.0,0.00024109,3]
[329468284,1718382465049,-780.74,0.00024109,3]
[329468285,1718382465135,-788.58,0.00024109,3]
[329468286,1718382465226,-593.08,0.00024109,3]
[329468287,1718382465283,-500.0,0.00024109,3]
[329468288,1718382465353,-669.21,0.00024109,3]
[329468289,1718382465398,-718.4,0.00024109,3]
[329468290,1718382465445,-500.0,0.00024109,3]
[329468291,1718382465504,-736.96,0.00024109,3]
[329468292,1718382465579,-500.0,0.00024109,3]
[329468293,1718382465626,-500.0,0.00024109,3]
[329468294,1718382465702,-874.68,0.00024109,3]
[329468295,1718382465765,-500.0,0.00024109,3]
[329468296,1718382465827,-500.0,0.00024109,3]
[329468297,1718382465885,-527.03,0.00024109,3]
[329468298,1718382465956,-510.58544795,0.00024109,3]
[329468299,1718382465993,-500.0,0.00024109,3]
[329468300,1718382466033,-507.96,0.00024109,3]
[329468301,1718382466101,-500.0,0.00024109,3]
[329468302,1718382466143,-500.0,0.00024109,3]
[329468303,1718382466404,-1264.49,0.00024109,3]
[329468304,1718382466469,-500.0,0.00024109,3]
[329468305,1718382466532,-500.0,0.00024109,3]
[329468306,1718382466588,-500.0,0.00024109,3]
[329468307,1718382466628,-500.0,0.00024109,3]
[329468308,1718382466684,-500.0,0.00024109,3]
[329468309,1718382466725,-1221.95,0.00024109,3]
[329468310,1718382466801,-500.0,0.00024109,3]
[329468311,1718382466871,-500.0,0.00024109,3]
[329468312,1718382466918,-500.0,0.00024109,3]
[329468313,1718382466981,-550.6502135,0.00024109,3]
[329468314,1718382467075,-500.0,0.00024109,3]
[329468315,1718382467141,-500.0,0.00024109,3]
[329468316,1718382467195,-500.0,0.00024109,3]
[329468317,1718382467254,-1101.58,0.00024109,3]
[329468318,1718382467316,-500.0,0.00024109,3]
[329468319,1718382467364,-500.0,0.00024109,3]
[329468320,1718382467414,-854.23,0.00024109,3]
[329468321,1718382467476,-1320.74,0.00024109,3]
[329468322,1718382467525,-500.0,0.00024109,3]
[329468323,1718382467650,-500.0,0.00024109,3]
[329468324,1718382467707,-500.0,0.00024109,3]
[329468325,1718382467791,-500.0,0.00024109,3]
[329468326,1718382467842,-500.0,0.00024109,3]
[329468327,1718382467928,-500.0,0.00024109,3]
[329468328,1718382467988,-500.0,0.00024109,3]
[329468329,1718382468033,-500.0,0.00024109,3]
[329468330,1718382468123,-545.95191036,0.00024109,3]
[329468331,1718382468173,-500.0,0.00024109,3]
[329468332,1718382468230,-500.0,0.00024109,3]
[329468333,1718382468284,-670.88,0.00024109,3]
[329468334,1718382468366,-574.95,0.00024109,3]
[329468335,1718382468425,-500.0,0.00024109,3]
[329468336,1718382468470,-564.10113273,0.00024109,3]
[329468337,1718382468552,-500.0,0.00024109,3]
[329468338,1718382468597,-500.0,0.00024109,3]
[329468339,1718382468636,-500.0,0.00024109,3]
[329468340,1718382468701,-500.0,0.00024109,3]
[329468341,1718382468758,-503.11949433,0.00024109,3]
[329468342,1718382468814,-500.0,0.00024109,3]
[329468343,1718382468879,-500.0,0.00024109,3]
[329468344,1718382468941,-1734.14,0.00024109,3]
[329468345,1718382468986,-612.09,0.00024109,3]
[329468346,1718382469034,-500.0,0.00024109,3]
[329468347,1718382469080,-500.0,0.00024109,3]
[329468348,1718382469123,-268.07010932,0.00024109,2]
[329468349,1718382469174,-500.0,0.00024109,3]
[329468350,1718382469216,-373.01468682,0.00024109,3]
[329468351,1718382469257,-673.58,0.00024109,3]
[329468352,1718382469310,-500.0,0.00024109,3]
[329468353,1718382469360,-500.0,0.00024109,3]
[329468354,1718382469420,-633.38,0.00024109,3]
[329468355,1718382469463,-500.0,0.00024109,3]
[329468356,1718382469526,-538.68,0.00024109,3]
[329468357,1718382469565,-500.0,0.00024109,3]
[329468358,1718382469654,-624.88,0.00024109,3]
[329468359,1718382469705,-500.0,0.00024109,3]
[329468360,1718382469772,-500.0,0.00024109,3]
[329468361,1718382469824,-1004.01,0.00024109,3]
[329468362,1718382469892,-597.68,0.00024109,3]
[329468363,1718382469962,-733.92,0.00024109,3]
[329468364,1718382470018,-500.0,0.00024109,3]
[329468365,1718382470071,-500.0,0.00024109,3]
[329468366,1718382470144,-544.0129642,0.00024109,3]
[329468367,1718382470196,-510.37,0.00024109,3]
[329468368,1718382470257,-500.0,0.00024109,3]
[329468369,1718382470327,-500.0,0.00024109,3]
[329468370,1718382470387,-763.72,0.00024109,3]
[329468371,1718382470454,-521.38,0.00024109,3]
[329468372,1718382470496,-500.0,0.00024109,3]
[329468373,1718382470559,-500.0,0.00024109,3]
[329468374,1718382470620,-500.0,0.00024109,3]
[329468375,1718382470674,-500.0,0.00024109,3]
[329468376,1718382470746,-500.0,0.00024109,3]
[329468377,1718382470788,-500.0,0.00024109,3]
[329468378,1718382470832,-618.42,0.00024109,3]
[329468379,1718382470895,-500.0,0.00024109,3]
[329468380,1718382470957,-540.25,0.00024109,3]
[329468381,1718382471029,-500.0,0.00024109,3]
[329468382,1718382471090,-500.0,0.00024109,3]
[329468383,1718382471153,-500.0,0.00024109,3]
[329468384,1718382471199,-500.0,0.00024109,3]
[329468385,1718382471252,-500.0,0.00024109,3]
[329468386,1718382471315,-500.0,0.00024109,3]
[329468387,1718382471356,-556.75883875,0.00024109,3]
[329468388,1718382471421,-500.0,0.00024109,3]
[329468389,1718382471705,-640.05,0.00024109,3]
[329468390,1718382471776,-590.79,0.00024109,3]
[329468391,1718382471865,-500.0,0.00024109,3]
[329468392,1718382471930,-500.0,0.00024109,3]
[329468393,1718382471992,-500.0,0.00024109,3]
[329468394,1718382472067,-500.0,0.00024109,3]
[329468395,1718382472136,-899.12,0.00024109,3]
[329468396,1718382472189,-1087.94,0.00024109,3]
[329468397,1718382472287,-500.0,0.00024109,3]
[329468398,1718382472348,-500.0,0.00024109,3]
[329468399,1718382472480,-619.45,0.00024109,3]
[329468400,1718382472544,-511.68,0.00024109,3]
[329468401,1718382472625,-1789.44,0.00024109,3]
[329468402,1718382472730,-500.0,0.00024109,3]
[329468403,1718382472793,-501.34,0.00024109,3]
[329468404,1718382472839,-500.0,0.00024109,3]
[329468405,1718382472888,-713.67,0.00024109,3]
[329468406,1718382472933,-500.0,0.00024109,3]
[329468407,1718382472977,-500.0,0.00024109,3]
[329468408,1718382473029,-548.11,0.00024109,3]
[329468409,1718382473073,-500.0,0.00024109,3]
[329468410,1718382473139,-500.0,0.00024109,3]
[329468411,1718382473221,-20815.16,0.00024109,3]
[329468412,1718382473259,-500.0,0.00024109,3]
[329468413,1718382473316,-763.77,0.00024109,3]
[329468414,1718382473385,-500.0,0.00024109,3]
[329468415,1718382473427,-500.0,0.00024109,3]
[329468416,1718382473480,-1084.12,0.00024109,3]
[329468417,1718382473536,-500.0,0.00024109,3]
[329468418,1718382473596,-500.0,0.00024109,3]
[329468419,1718382473651,-500.0,0.00024109,3]
[329468420,1718382473717,-500.0,0.00024109,3]
[329468421,1718382473771,-1683.92,0.00024109,3]
[329468422,1718382473830,-543.53556932,0.00024109,3]
[329468423,1718382473889,-1076.42,0.00024109,3]
[329468424,1718382473965,-500.0,0.00024109,3]
[329468425,1718382474059,-500.0,0.00024109,3]
[329468426,1718382474146,-500.0,0.00024109,3]
[329468427,1718382474204,-500.0,0.00024109,3]
[329468428,1718382474276,-3457.17,0.00024109,3]
[329468429,1718382474370,-500.0,0.00024109,3]
[329468430,1718382474491,-500.0,0.00024109,3]
[329468431,1718382474617,-500.0,0.00024109,3]
[329468432,1718382474717,-504.72739672,0.00024109,3]
[329468433,1718382474762,-500.0,0.00024109,3]
[329468434,1718382474896,-500.0,0.00024109,3]
[329468435,1718382474986,-512.15,0.00024109,3]
[329468436,1718382475062,-500.0,0.00024109,3]
[329468437,1718382475154,-611.46,0.00024109,3]
[329468438,1718382475263,-500.0,0.00024109,3]
[329468439,1718382475339,-3042.23,0.00024109,3]
[329468440,1718382475424,-557.27656805,0.00024109,3]
[329468441,1718382475487,-914.22,0.00024109,3]
[329468442,1718382475551,-573.96,0.00024109,3]
[329468443,1718382475624,-1909.78,0.00024109,3]
[329468444,1718382475685,-517.33,0.00024109,3]
[329468445,1718382475765,-831.61,0.00024109,3]
[329468446,1718382475830,-662.73,0.00024109,3]
[329468447,1718382475875,-528.49267838,0.00024109,3]
[329468448,1718382475927,-500.0,0.00024109,3]
[329468449,1718382475970,-500.0,0.00024109,3]
[329468450,1718382476027,-500.0,0.00024109,3]
[329468451,1718382476090,-622.18,0.00024109,3]
[329468452,1718382476144,-500.0,0.00024109,3]
[329468453,1718382476258,-606.5,0.00024109,3]
[329468454,1718382476306,-500.0,0.00024109,3]
[329468455,1718382476388,-211.95683177,0.00024109,3]
[329468456,1718382476439,-500.0,0.00024109,3]
[329468457,1718382476493,-996.64,0.00024109,3]
[329468458,1718382476553,-500.0,0.00024109,3]
[329468459,1718382476630,-568.32,0.00024109,3]
[329468460,1718382476678,-697.2,0.00024109,3]
[329468461,1718382476743,-849.21,0.00024109,3]
[329468462,1718382476817,-889.26,0.00024109,3]
[329468463,1718382476896,-500.0,0.00024109,3]
[329468464,1718382476967,-14486.89,0.00024109,3]
[329468465,1718382477080,-500.0,0.00024109,3]
[329468466,1718382477158,-5686.07,0.00024109,3]
[329468467,1718382477203,-781.91,0.00024109,3]
[329468468,1718382477268,-500.0,0.00024109,3]
[329468469,1718382477336,-1018.61,0.00024109,3]
[329468470,1718382477430,-585.92,0.00024109,3]
[329468471,1718382477493,-500.0,0.00024109,3]
[329468472,1718382477548,-520.71864376,0.00024109,3]
[329468473,1718382477633,-2904.62,0.00024109,3]
[329468474,1718382477686,-510.01,0.00024109,3]
[329468475,1718382477748,-500.0,0.00024109,3]
[329468476,1718382478089,-500.0,0.00024109,3]
[329468477,1718382478150,-15237.24,0.00024109,3]
[329468478,1718382478224,-577.67602859,0.00024109,3]
[329468479,1718382478293,-612.61,0.00024109,3]
[329468480,1718382478343,-241.00041399,0.00024109,3]
[329468481,1718382478441,-1011.12,0.00024109,3]
[329468482,1718382478613,-500.0,0.00024109,3]